bitfinex/quotes_SOLUSD_20250830
["timestamp","ask_amount","ask_price","bid_price","bid_amount"]
[1756553225818,1e-08,202.84,202.83,40.34703102]
[1756553226600,1e-08,202.84,202.83,45.27726816]
[1756553232634,1e-08,202.84,202.83,45.30726816]
[1756553236029,1e-08,202.84,202.83,45.99726816]
[1756553238310,1e-08,202.84,202.83,45.30726816]
[1756553240638,1e-08,202.84,202.83,42.78023714]
[1756553240821,1e-08,202.84,202.83,45.30726816]
[1756553241412,3.24703103,202.84,202.83,0.03]
[1756553246411,1e-08,202.84,202.83,0.03]
[1756553246740,1e-08,202.84,202.83,3.24703102]
[1756553248937,1e-08,202.84,202.83,8.17726816]
[1756553249739,1e-08,202.84,202.83,5.65023714]
[1756553250437,1e-08,202.84,202.83,8.17726816]
[1756553251014,1e-08,202.84,202.83,5.65023714]
[1756553257845,1e-08,202.84,202.83,8.17726816]
[1756553258038,1e-08,202.84,202.83,45.97726816]
[1756553258435,1e-08,202.84,202.83,43.45023714]
[1756553259946,1e-08,202.84,202.83,42.76023714]
[1756553260331,1e-08,202.84,202.83,43.44023714]
[1756553279974,1e-08,202.84,202.83,45.96726814]
[1756553283176,1e-08,202.84,202.83,48.49429916]
[1756553285170,1e-08,202.84,202.83,45.26726814]
[1756553285367,1e-08,202.84,202.83,0.03]
[1756553285670,1e-08,202.84,202.83,37.81]
[1756553285671,0.66000001,202.84,202.83,37.81]
[1756553286653,1e-08,202.84,202.83,37.81]
[1756553301489,3.18703103,202.84,202.83,0.03]
[1756553301688,6.51476821,202.84,202.83,0.03]
[1756553306499,3.32773719,202.84,202.83,0.03]
[1756553306700,6.51476821,202.84,202.83,0.03]
[1756553311813,5.85476821,202.84,202.83,0.03]
[1756553311982,6.55476821,202.84,202.83,0.03]
[1756553312384,9.88250521,202.84,202.83,0.03]
[1756553312794,14.81249929,202.84,202.83,0.03]
[1756553313314,52.59249929,202.84,202.83,0.03]
[1756553314689,66.1880933,202.84,202.83,0.03]
[1756553314889,75.68000395,202.84,202.83,0.03]
[1756553315096,28.52703102,202.81,202.8,0.03]
[1756553315300,31.8547682,202.81,202.8,0.03]
[1756553315610,32.5547682,202.81,202.8,0.03]
[1756553315810,34.5318822,202.81,202.8,0.03]
[1756553316120,39.46260553,202.81,202.8,0.03]
[1756553317594,77.24260553,202.81,202.8,0.03]
[1756553326226,71.6118822,202.81,202.8,0.03]
[1756553326440,71.6118822,202.81,202.8,0.68]
[1756553327817,31.30485118,202.81,202.8,0.68]
[1756553328025,71.6118822,202.81,202.8,0.68]
[1756553328329,71.6118822,202.81,202.8,0.03]
[1756553330099,77.24260553,202.81,202.8,0.03]
[1756553334614,76.54260553,202.81,202.8,0.03]
[1756553337422,77.24260553,202.81,202.8,0.03]
[1756553339332,76.54260553,202.81,202.8,0.03]
[1756553340132,77.24260553,202.81,202.8,0.03]
[1756553342742,76.54260553,202.81,202.8,0.03]
[1756553351843,76.53818931,202.81,202.8,0.03]
[1756553353351,77.24818931,202.81,202.8,0.03]
[1756553356344,76.53818931,202.81,202.78,0.72]
[1756553356546,2.52703102,202.79,202.78,0.72]
[1756553356750,43.63035198,202.79,202.78,0.72]
[1756553358254,5.85035198,202.79,202.78,0.72]
[1756553358430,43.63035198,202.79,202.78,0.72]
[1756553360273,41.10332096,202.79,202.78,0.72]
[1756553360443,43.63035198,202.79,202.78,0.72]
[1756553363548,43.63035198,202.79,202.78,0.03]
[1756553364869,43.63035198,202.79,202.78,0.72]
[1756553365069,3.32332096,202.79,202.78,0.72]
[1756553365544,3.32332096,202.8,202.78,0.72]
[1756553365857,3.32332096,202.79,202.78,0.72]
[1756553366249,3.32332096,202.8,202.78,0.72]
[1756553366448,3.32332096,202.79,202.78,0.72]
[1756553366853,3.32332096,202.8,202.78,0.72]
[1756553367041,3.32332096,202.79,202.78,0.72]
[1756553367836,3.32332096,202.8,202.78,0.72]
[1756553369465,3.38332096,202.8,202.78,0.72]
[1756553371043,3.38332096,202.8,202.79,2.52703102]
[1756553371260,0.06,202.8,202.79,3.18703102]
[1756553372666,0.06,202.8,202.79,8.11824064]
[1756553379768,0.06,202.8,202.79,16.29648064]
[1756553387380,0.06,202.8,202.79,16.32648064]
[1756553397587,3.25703102,202.8,202.79,0.03]
[1756553397895,35.10433699,202.8,202.79,0.03]
[1756553400180,37.73902154,202.8,202.79,0.03]
[1756553400494,43.07409376,202.8,202.79,0.03]
[1756553400694,13.59559401,202.79,202.78,0.03]
[1756553400992,24.77797222,202.79,202.78,0.03]
[1756553401291,24.9485452,202.79,202.78,0.03]
[1756553401583,27.47557622,202.79,202.78,0.03]
[1756553402571,32.40678584,202.79,202.78,0.03]
[1756553405575,32.46678584,202.79,202.78,0.03]
[1756553407177,32.46678584,202.79,202.77,0.03]
[1756553407388,57.2029,202.78,202.77,0.03]
[1756553407573,2.52703102,202.77,202.76,0.03]
[1756553407784,11.90237821,202.77,202.76,0.03]
[1756553408300,13.88037321,202.77,202.76,0.03]
[1756553409692,18.80730204,202.77,202.76,0.03]
[1756553409885,13.59559401,202.76,202.74,0.03]
[1756553410208,43.60253881,202.75,202.74,0.03]
[1756553410385,49.65761103,202.75,202.74,0.03]
[1756553410584,51.63580203,202.75,202.74,0.03]
[1756553411980,56.56798452,202.75,202.74,0.03]
[1756553412827,70.16357853,202.75,202.72,0.03]
[1756553412981,8.65058001,202.74,202.72,0.03]
[1756553413185,43.60253881,202.73,202.72,0.03]
[1756553413409,40.28703102,202.73,202.72,0.03]
[1756553413587,42.26512402,202.73,202.72,0.03]
[1756553415995,47.19779308,202.73,202.72,0.03]
[1756553417795,64.82094288,202.73,202.72,0.03]
[1756553420188,64.10094288,202.73,202.72,0.03]
[1756553420424,60.79338709,202.73,202.72,0.03]
[1756553420791,23.03338709,202.73,202.72,0.03]
[1756553421103,58.81529409,202.73,202.72,0.75]
[1756553421491,58.81529409,202.73,202.72,0.03]
[1756553422211,2.52703102,202.73,202.72,0.75]
[1756553422518,37.76,202.73,202.72,0.75]
[1756553422825,2.52703102,202.73,202.72,0.75]
[1756553423020,4.9314528,202.78,202.72,0.75]
[1756553423227,2.52703102,202.75,202.72,0.75]
[1756553423424,4.0097402,202.73,202.72,0.03]
[1756553423597,4.0097402,202.73,202.72,0.75]
[1756553423790,4.0097402,202.73,202.72,0.03]
[1756553424603,8.94240926,202.73,202.72,0.03]
[1756553424797,9.66240926,202.73,202.72,0.03]
[1756553425234,23.25800327,202.73,202.72,0.03]
[1756553427125,35.84777549,202.73,202.72,0.03]
[1756553427324,18.93066623,202.72,202.71,0.03]
[1756553427503,64.68536623,202.72,202.71,0.03]
[1756553427709,26.90536623,202.72,202.71,0.03]
[1756553428021,41.7297402,202.72,202.71,0.75]
[1756553428742,60.2582466,202.72,202.71,0.03]
[1756553429045,60.9782466,202.72,202.71,0.03]
[1756553430930,60.2582466,202.72,202.71,0.03]
[1756553433238,60.9582466,202.72,202.71,0.03]
[1756553433406,39.59559401,202.7,202.69,0.03]
[1756553433611,3.9497402,202.7,202.69,0.7]
[1756553433809,41.7697402,202.7,202.69,0.03]
[1756553434009,43.7481262,202.7,202.69,0.03]
[1756553434942,48.68152531,202.7,202.69,0.03]
[1756553435515,53.33126551,202.7,202.69,0.03]
[1756553436829,55.94159028,202.7,202.69,0.03]
[1756553438722,51.99185008,202.7,202.69,0.03]
[1756553439618,55.94159028,202.7,202.69,0.03]
[1756553440129,51.99185008,202.7,202.69,0.7]
[1756553440838,51.99185008,202.7,202.69,0.03]
[1756553442713,51.99185008,202.7,202.69,0.7]
[1756553443914,51.99185008,202.7,202.69,0.03]
[1756553444327,51.99185008,202.7,202.69,0.7]
[1756553445339,14.17185008,202.7,202.69,0.7]
[1756553445738,51.99185008,202.7,202.69,0.03]
[1756553449067,51.97185008,202.7,202.69,0.03]
[1756553451422,50.55125942,202.7,202.69,0.03]
[1756553453624,50.56964919,202.7,202.69,0.03]
[1756553462654,12.76964919,202.7,202.69,0.75]
[1756553462966,43.63786408,202.7,202.69,0.75]
[1756553463135,69.63786408,202.7,202.69,0.75]
[1756553463326,71.61595708,202.7,202.69,0.75]
[1756553465867,76.54935619,202.7,202.69,0.03]
[1756553466040,76.54935619,202.7,202.69,0.75]
[1756553466861,74.92154836,202.7,202.69,0.03]
[1756553467159,80.25662058,202.7,202.69,0.03]
[1756553467362,75.51667746,202.7,202.69,0.03]
[1756553469454,79.67757064,202.7,202.69,0.03]
[1756553473968,75.72466835,202.7,202.69,0.03]
[1756553476072,79.67757064,202.7,202.69,0.03]
[1756553476457,17.5484963,202.69,202.68,0.03]
[1756553476642,25.70018541,202.69,202.68,0.03]
[1756553477167,27.67886441,202.69,202.68,0.03]
[1756553477467,32.61250691,202.69,202.68,0.03]
[1756553479770,31.95250691,202.69,202.68,0.03]
[1756553482054,65.56953234,202.69,202.68,0.03]
[1756553482876,65.56953234,202.69,202.68,0.75]
[1756553483055,65.56953234,202.69,202.68,0.03]
[1756553484762,66.22953234,202.69,202.68,0.03]
[1756553485681,23.83663005,202.69,202.68,0.75]
[1756553485881,5.30739354,202.69,202.68,0.75]
[1756553486063,67.10871454,202.69,202.68,0.75]
[1756553491572,0.06,202.71,202.68,9.63414816]
[1756553491871,37.84,202.71,202.69,4.64026224]
[1756553492081,37.84,202.71,202.7,0.69]
[1756553492285,41.16832868,202.71,202.7,0.69]
[1756553492661,3.38832868,202.71,202.7,4.64026224]
[1756553492863,0.06,202.71,202.7,4.64026224]
[1756553493484,0.06,202.71,202.7,9.57366135]
[1756553493674,0.06,202.71,202.7,13.52392359]
[1756553493876,0.06,202.71,202.7,9.57366135]
[1756553494275,0.06,202.71,202.7,13.52392359]
[1756553495270,0.06,202.71,202.7,9.57366135]
[1756553496669,0.06,202.71,202.7,11.55097235]
[1756553498194,0.06,202.71,202.7,15.50123459]
[1756553499778,0.06,202.71,202.7,28.50123459]
[1756553504612,0.06,202.71,202.7,24.55097235]
[1756553506281,0.06,202.72,202.7,24.55097235]
[1756553506485,0.06,202.72,202.71,0.69]
[1756553507093,0.06,202.72,202.71,2.66731]
[1756553507597,0.06,202.72,202.71,11.55072797]
[1756553509384,1e-08,202.72,202.71,11.55072797]
[1756553509590,1e-08,202.75,202.72,13.59559401]
[1756553509805,1e-08,202.77,202.74,17.54585625]
[1756553510012,1e-08,202.77,202.76,3.95026224]
[1756553510497,1e-08,202.77,202.76,4.64026224]
[1756553511381,1e-08,202.77,202.76,9.57220147]
[1756553511610,1e-08,202.78,202.76,22.57220147]
[1756553511915,0.06,202.8,202.77,18.72902585]
[1756553512204,0.06,202.8,202.79,3.95026224]
[1756553512589,0.06,202.8,202.79,4.64026224]
[1756553512789,0.06,202.8,202.79,6.61659524]
[1756553513503,0.06,202.8,202.79,11.54780486]
[1756553514210,0.06,202.8,202.79,46.66147186]
[1756553514409,0.06,202.8,202.79,47.35147186]
[1756553516906,0.06,202.8,202.79,49.32790286]
[1756553517494,0.06,202.8,202.79,62.32790286]
[1756553520095,0.06,202.8,202.79,60.35147186]
[1756553520698,0.75,202.8,202.79,59.66147186]
[1756553521383,30.70026224,202.8,202.72,12.33174963]
[1756553521711,3.95026224,202.78,202.73,42.71266906]
[1756553521914,3.95026224,202.78,202.73,47.3429313]
[1756553522086,0.66,202.77,202.73,47.3429313]
[1756553523009,4.61026224,202.76,202.71,4.96292702]
[1756553523191,0.66,202.75,202.71,47.39318926]
[1756553524407,0.66,202.74,202.71,0.03]
[1756553524992,3.95026224,202.73,202.71,0.03]
[1756553525313,4.61026224,202.75,202.71,0.03]
[1756553525616,4.61026224,202.75,202.71,0.71]
[1756553526316,4.61026224,202.75,202.72,4.93291239]
[1756553527011,3.95026224,202.73,202.71,0.03]
[1756553527518,4.61026224,202.73,202.71,0.03]
[1756553528111,3.95026224,202.72,202.71,0.03]
[1756553528317,4.61026224,202.72,202.71,0.03]
[1756553528512,35.86462717,202.77,202.73,20.66632776]
[1756553528719,3.95026224,202.74,202.73,20.66632776]
[1756553530419,4.32026224,202.74,202.73,20.66632776]
[1756553530593,3.95026224,202.74,202.73,20.66632776]
[1756553531116,26.0,202.76,202.73,21.34632776]
[1756553531300,3.95026224,202.75,202.74,0.68]
[1756553531829,29.95026224,202.76,202.74,0.68]
[1756553532129,3.95026224,202.75,202.74,0.68]
[1756553533824,4.32026224,202.75,202.73,20.66632776]
[1756553533999,4.32026224,202.74,202.73,20.66632776]
[1756553534198,3.95026224,202.74,202.73,20.66632776]
[1756553536622,0.37,202.77,202.73,20.66632776]
[1756553536800,3.95026224,202.74,202.73,20.66632776]
[1756553538603,9.252688,202.74,202.73,20.66632776]
[1756553539004,24.086182,202.74,202.73,20.66632776]
[1756553539222,61.886182,202.74,202.73,20.66632776]
[1756553539922,65.20303986,202.74,202.73,20.66632776]
[1756553540128,78.79863387,202.74,202.73,20.66632776]
[1756553541220,13.59559401,202.73,202.71,0.03]
[1756553541428,7.90052448,202.72,202.71,0.03]
[1756553541606,8.27052448,202.72,202.71,0.03]
[1756553541804,15.18162687,202.72,202.71,0.03]
[1756553542832,13.59559401,202.71,202.69,0.03]
[1756553543033,39.59559401,202.68,202.66,0.03]
[1756553543222,17.54585625,202.67,202.66,0.03]
[1756553543537,19.89463425,202.67,202.66,0.03]
[1756553544630,28.85897548,202.67,202.66,0.03]
[1756553544831,24.82876362,202.67,202.66,0.03]
[1756553545010,28.83122739,202.67,202.66,0.03]
[1756553545211,24.82876362,202.67,202.66,0.03]
[1756553547507,28.70315867,202.67,202.66,0.03]
[1756553548108,24.82876362,202.67,202.66,0.03]
[1756553548326,28.78443691,202.67,202.65,0.03]
[1756553548627,39.59559401,202.64,202.63,0.03]
[1756553548828,68.13026224,202.64,202.63,0.03]
[1756553549532,70.12923624,202.64,202.63,0.03]
[1756553549731,27.978974,202.64,202.63,0.03]
[1756553549915,70.12923624,202.64,202.63,0.71]
[1756553550308,70.12923624,202.64,202.63,0.03]
[1756553551228,75.06409608,202.64,202.63,0.03]
[1756553551828,70.12923624,202.64,202.63,0.03]
[1756553552840,27.978974,202.64,202.63,0.73]
[1756553553013,1.978974,202.64,202.63,0.73]
[1756553553218,42.13026224,202.67,202.63,0.73]
[1756553553530,3.95026224,202.66,202.63,0.73]
[1756553553726,29.95026224,202.64,202.63,0.03]
[1756553553937,68.17026224,202.64,202.63,0.03]
[1756553554117,73.47512208,202.64,202.63,0.03]
[1756553554513,89.04968909,202.64,202.63,0.03]
[1756553555242,49.12409508,202.64,202.63,0.03]
[1756553556841,44.18923524,202.64,202.63,0.03]
[1756553557138,44.22923524,202.64,202.63,0.73]
[1756553558933,44.22923524,202.64,202.63,0.03]
[1756553559543,5.92923524,202.64,202.63,0.73]
[1756553559849,44.22923524,202.64,202.63,0.73]
[1756553560324,44.22923524,202.64,202.63,0.03]
[1756553561831,49.16409508,202.64,202.63,0.03]
[1756553568036,49.16409508,202.64,202.63,0.73]
[1756553569340,49.16409508,202.64,202.63,0.03]
[1756553569737,44.22923524,202.64,202.63,0.03]
[1756553570042,1.978973,202.64,202.63,0.73]
[1756553570227,42.23026224,202.65,202.63,0.73]
[1756553570545,38.28,202.65,202.63,0.73]
[1756553570732,42.23026224,202.65,202.63,0.73]
[1756553570937,3.95026224,202.64,202.63,0.03]
[1756553571439,42.23026224,202.65,202.63,0.73]
[1756553571950,3.95026224,202.64,202.63,0.03]
[1756553572525,3.95026224,202.64,202.63,0.73]
[1756553573030,3.95026224,202.64,202.63,0.03]
[1756553574252,5.92894224,202.64,202.63,0.03]
[1756553574435,3.95026224,202.64,202.63,0.03]
[1756553575632,3.95026224,202.64,202.63,0.73]
[1756553576948,3.95026224,202.64,202.63,0.03]
[1756553577127,8.88512208,202.64,202.63,0.03]
[1756553577446,10.86389908,202.64,202.63,0.03]
[1756553577843,6.91363684,202.64,202.63,0.03]
[1756553578034,5.92903924,202.64,202.63,0.03]
[1756553579353,5.92903924,202.64,202.63,0.73]
[1756553580129,38.28,202.65,202.63,0.73]
[1756553580957,0.06,202.65,202.63,5.66496534]
[1756553581167,0.06,202.68,202.64,4.62026224]
[1756553581331,0.06,202.68,202.67,3.95026224]
[1756553581533,0.06,202.68,202.66,3.95026224]
[1756553581747,0.06,202.68,202.65,4.62026224]
[1756553581946,0.06,202.68,202.66,0.67]
[1756553582453,0.06,202.68,202.66,5.6043165]
[1756553582655,0.06,202.68,202.66,5.6043382]
[1756553582854,0.06,202.68,202.66,4.9343382]
[1756553583039,0.06,202.68,202.67,0.67]
[1756553586259,4.01026224,202.68,202.63,3.98026224]
[1756553586437,3.95026224,202.66,202.65,0.67]
[1756553587040,26.0,202.65,202.63,0.7]
[1756553587240,29.95026224,202.64,202.63,0.03]
[1756553589362,68.19026224,202.64,202.63,0.03]
[1756553592159,71.93760171,202.64,202.63,0.03]
[1756553593562,76.87246155,202.64,202.63,0.03]
[1756553597561,76.44246155,202.64,202.63,0.03]
[1756553601275,90.46805556,202.64,202.63,0.03]
[1756553601766,92.44712756,202.64,202.63,0.03]
[1756553602150,90.03805556,202.64,202.63,0.03]
[1756553604259,90.46805556,202.64,202.63,0.03]
[1756553604671,92.44712656,202.64,202.63,0.03]
[1756553605173,92.01712656,202.64,202.63,0.03]
[1756553609172,92.44712656,202.64,202.63,0.03]
[1756553609857,13.59559401,202.63,202.61,0.03]
[1756553610079,49.35786395,202.62,202.61,0.03]
[1756553610253,59.2623613,202.62,202.61,0.03]
[1756553610579,57.10239917,202.62,202.61,0.03]
[1756553611162,61.2418243,202.62,202.61,0.03]
[1756553611470,62.03774612,202.62,202.61,0.03]
[1756553611983,75.63334013,202.62,202.61,0.03]
[1756553612478,75.63334013,202.62,202.6,0.03]
[1756553612687,14.98415578,202.61,202.6,0.03]
[1756553613059,15.41415578,202.61,202.6,0.03]
[1756553613258,17.39371678,202.61,202.6,0.03]
[1756553613677,22.32930732,202.61,202.6,0.03]
[1756553614587,35.92490133,202.61,202.6,0.03]
[1756553614883,43.54585625,202.59,202.58,0.03]
[1756553615186,90.33826794,202.59,202.58,0.03]
[1756553615693,92.31802494,202.59,202.58,0.03]
[1756553616485,88.3677627,202.59,202.58,0.03]
[1756553616674,97.25410273,202.59,202.58,0.03]
[1756553618492,39.59559401,202.56,202.55,0.71]
[1756553618667,85.00319572,202.56,202.55,0.71]
[1756553618992,85.00319572,202.56,202.55,0.74]
[1756553619177,85.00319572,202.56,202.55,0.03]
[1756553619691,89.94191872,202.56,202.55,0.03]
[1756553620494,98.87205853,202.56,202.55,0.03]
[1756553620980,94.87872756,202.56,202.55,0.03]
[1756553621382,98.80700377,202.56,202.55,0.03]
[1756553621770,104.14207599,202.56,202.55,0.03]
[1756553622188,13.59559401,202.54,202.53,0.03]
[1756553622396,39.59559401,202.51,202.5,0.2]
[1756553622580,90.67414624,202.51,202.5,0.2]
[1756553622772,92.65449124,202.51,202.5,0.91]
[1756553623377,54.41449124,202.51,202.5,0.91]
[1756553623569,54.41449124,202.51,202.5,0.2]
[1756553623797,88.704229,202.51,202.5,0.2]
[1756553624004,98.41956346,202.51,202.5,0.2]
[1756553624890,97.98956346,202.51,202.5,0.2]
[1756553625499,51.84903898,202.51,202.5,0.91]
[1756553625703,94.03930122,202.51,202.5,0.91]
[1756553627901,94.03930122,202.51,202.5,0.2]
[1756553628275,97.98956346,202.51,202.5,0.2]
[1756553628702,55.79930122,202.51,202.5,0.91]
[1756553628906,94.03930122,202.51,202.5,0.91]
[1756553630292,94.03930122,202.51,202.5,0.2]
[1756553632198,94.01930122,202.51,202.5,0.2]
[1756553633495,97.32189918,202.51,202.5,0.2]
[1756553634102,101.27216142,202.51,202.5,0.2]
[1756553634712,93.37163694,202.51,202.5,0.2]
[1756553635014,97.32189918,202.51,202.5,0.91]
[1756553637787,97.32189918,202.51,202.5,0.2]
[1756553638802,5.28294296,202.51,202.5,0.91]
[1756553639102,0.06,202.53,202.5,0.91]
[1756553639103,64.22,202.52,202.5,0.91]
[1756553639305,26.0,202.52,202.51,0.71]
[1756553639491,64.22,202.52,202.51,0.71]
[1756553641300,0.06,202.53,202.51,9.59828999]
[1756553641810,0.06,202.53,202.52,0.72]
[1756553642502,4.01026224,202.53,202.52,0.72]
[1756553643409,0.06,202.53,202.52,0.72]
[1756553643997,38.26,202.53,202.52,0.72]
[1756553648023,0.06,202.53,202.52,0.72]
[1756553648216,38.26,202.53,202.52,0.72]
[1756553648425,0.06,202.53,202.52,0.72]
[1756553648598,38.24,202.53,202.52,0.72]
[1756553649713,0.06,202.53,202.52,0.72]
[1756553650330,4.01026224,202.53,202.52,0.72]
[1756553660840,4.01026224,202.53,202.51,0.03]
[1756553661146,38.1,202.52,202.51,0.03]
[1756553661652,38.1,202.52,202.51,0.75]
[1756553670356,41.2923466,202.52,202.51,0.03]
[1756553670534,44.60763469,202.52,202.51,0.03]
[1756553670735,49.54541861,202.52,202.51,0.03]
[1756553673434,50.97155538,202.52,202.51,0.03]
[1756553674854,47.01307201,202.52,202.51,0.03]
[1756553675060,67.37528809,202.52,202.51,0.72]
[1756553675436,71.33377146,202.52,202.51,0.03]
[1756553676164,71.33377146,202.52,202.51,0.72]
[1756553676469,71.33377146,202.52,202.51,0.03]
[1756553676652,76.99155538,202.52,202.51,0.03]
[1756553679736,50.99155538,202.52,202.51,0.03]
[1756553683271,64.58714939,202.52,202.51,0.03]
[1756553687677,8.25307201,202.52,202.51,0.03]
[1756553687875,45.33377146,202.52,202.51,0.72]
[1756553688490,45.33377146,202.52,202.51,0.03]
[1756553689579,45.33377146,202.52,202.51,0.72]
[1756553690076,3.31528809,202.52,202.51,0.72]
[1756553690272,71.33377146,202.52,202.51,0.72]
[1756553690657,71.33377146,202.52,202.51,0.03]
[1756553692470,76.27155538,202.52,202.51,0.03]
[1756553692685,76.99155538,202.52,202.51,0.03]
[1756553693265,69.90860913,202.52,202.51,0.03]
[1756553695198,74.84639305,202.52,202.51,0.03]
[1756553696079,72.31307201,202.52,202.51,0.03]
[1756553696384,67.37528809,202.52,202.51,0.03]
[1756553696558,69.90860913,202.52,202.51,0.72]
[1756553696755,69.90860913,202.52,202.51,0.03]
[1756553698879,69.90860913,202.52,202.51,0.72]
[1756553699686,69.90860913,202.52,202.51,0.03]
[1756553701705,74.84639305,202.52,202.51,0.03]
[1756553701987,77.49634605,202.52,202.51,0.03]
[1756553702495,91.09194006,202.52,202.51,0.03]
[1756553702787,5.33507222,202.51,202.5,0.2]
[1756553702981,13.71700239,202.51,202.5,0.2]
[1756553703168,14.38700239,202.51,202.5,0.2]
[1756553703572,21.30557114,202.51,202.5,0.2]
[1756553705383,24.16025558,202.51,202.5,0.2]
[1756553706069,13.59559401,202.5,202.48,0.03]
[1756553706269,50.65102357,202.49,202.48,0.03]
[1756553706463,13.59559401,202.48,202.47,0.03]
[1756553706687,30.34876766,202.48,202.47,0.03]
[1756553706985,31.01876766,202.48,202.47,0.03]
[1756553707589,35.95752704,202.48,202.47,0.03]
[1756553708890,36.87330682,202.48,202.47,1e-08]
[1756553709067,39.59559401,202.46,202.39,0.69]
[1756553709274,94.38607516,202.46,202.45,1e-08]
[1756553709577,99.99532241,202.46,202.45,1e-08]
[1756553709765,101.97645241,202.46,202.45,1e-08]
[1756553710167,26.0,202.42,202.39,0.69]
[1756553710371,3.96066326,202.4,202.39,0.69]
[1756553710983,38.04,202.41,202.39,0.69]
[1756553711287,3.96066326,202.4,202.39,0.69]
[1756553711681,26.0,202.4,202.39,0.69]
[1756553711883,64.04,202.4,202.39,0.69]
[1756553712691,3.960664,202.43,202.39,0.69]
[1756553712869,10.27460339,202.45,202.39,0.69]
[1756553713070,42.02066326,202.44,202.39,4.65066326]
[1756553713288,38.06,202.44,202.4,4.65066326]
[1756553713484,38.06,202.44,202.4,3.96066326]
[1756553713688,42.02066326,202.44,202.41,0.69]
[1756553713989,3.96066326,202.46,202.41,9.59107854]
[1756553714169,38.08,202.45,202.42,4.65066326]
[1756553714370,26.0,202.46,202.43,0.69]
[1756553714589,64.08,202.46,202.43,0.69]
[1756553714768,38.08,202.46,202.43,0.69]
[1756553715377,8.90126926,202.49,202.44,3.96066326]
[1756553715592,4.19945758,202.53,202.45,4.65066326]
[1756553715593,38.08,202.48,202.45,4.65066326]
[1756553715787,38.08,202.48,202.46,0.69]
[1756553716991,38.08,202.48,202.46,9.58987582]
[1756553717197,38.08,202.48,202.47,0.69]
[1756553717571,64.1,202.49,202.47,0.69]
[1756553718495,26.0,202.49,202.47,0.69]
[1756553718697,26.0,202.48,202.47,0.69]
[1756553719775,38.1,202.5,202.47,5.6290033]
[1756553719980,38.1,202.5,202.48,0.69]
[1756553720395,38.1,202.5,202.49,0.69]
[1756553720796,26.06,202.52,202.49,4.65066326]
[1756553721001,26.06,202.52,202.5,0.69]
[1756553721002,0.06,202.52,202.5,0.69]
[1756553721590,0.06,202.52,202.51,0.69]
[1756553721878,26.0,202.5,202.47,0.69]
[1756553722087,3.96066326,202.49,202.47,0.69]
[1756553722806,38.12,202.49,202.48,0.69]
[1756553723115,26.0,202.49,202.48,0.69]
[1756553724804,26.0,202.48,202.45,5.629222]
[1756553724994,3.96066326,202.47,202.45,0.69]
[1756553726682,42.08066326,202.47,202.45,0.69]
[1756553727099,3.96066326,202.46,202.43,5.62985008]
[1756553727302,3.96066326,202.46,202.41,18.77997184]
[1756553727499,3.96066326,202.46,202.42,0.69]
[1756553728183,3.96066326,202.46,202.42,5.63012912]
[1756553728392,3.96066326,202.46,202.43,0.69]
[1756553728613,3.96066326,202.46,202.44,0.69]
[1756553729096,3.96066326,202.46,202.45,0.03]
[1756553729298,38.12,202.47,202.45,0.72]
[1756553731213,42.08066326,202.47,202.45,0.72]
[1756553731911,0.06,202.49,202.46,4.61066326]
[1756553732087,0.06,202.49,202.47,0.65]
[1756553733100,0.06,202.49,202.48,0.65]
[1756553735628,4.02066326,202.49,202.48,0.65]